[Event "Chinese League Div-A Rapid 2022"]
[Site "Fuling,Chongqing"]
[Date "2022.09.06"]
[Round "1.1"]
[White "Lou, Yiping"]
[Black "Lu, Shanglei"]
[Result "1/2-1/2"]
[ECO "A34"]
[WhiteElo "2485"]
[BlackElo "2616"]
[Annotator "TA"]
[PlyCount "40"]
[EventDate "2022.09.07"]
[EventType "team-tourn"]
[EventCountry "CHN"]
[SourceTitle "playchess.com"]
[Source "ChessBase"]
[SourceQuality "1"]
[TimeControl "1500+10"]

{[%evp 9,40,12,25,19,22,9,17,0,0,-35,0,0,0,0,8,8,7,12,17,18,22,13,18,8,20,0,20,4,0,0,29,8,0]} 1. c4 {[%emt 0:00:03]} Nf6 {[%emt 0:00:01]} 2. Nc3 {[%emt 0:00:05]} e6 {[%emt 0:00:02]} 3. e4 {[%emt 0:00:14]} c5 {[%emt 0:00:02]} 4. Nf3 {[%emt 0:00:44]} Nc6 {[%emt 0:00:29]} 5. Be2 {[%emt 0:00:15]} Qb6 {[%emt 0:01:51]} 6. O-O {[%emt 0:00:25] A34: Symmetrical English: 2 Nc3, lines with ...d5.} Be7 {[%emt 0:00:02]} 7. Re1 {[%emt 0:00:48]} d6 {[%emt 0:00:51]} 8. Bf1 {[%emt 0:00:21]} O-O {[%emt 0:00:04]} 9. b3 {[%emt 0:00:02]} Bd7 {[%emt 0:02:19] [#]} 10. h3 $146 {[%emt 0:01:31]} ({Predecessor:} 10. d3 a6 11. Bb2 Rad8 12. Qd2 Qa7 13. h3 h6 14. Rad1 Nh7 15. Ne2 e5 16. Nc3 {1-0 (76) Johansson,L (2425)-Andre,G (2254) Warsaw 2016}) 10... Nd4 {[%emt 0:01:16]} 11. d3 {[%emt 0:00:27]} Bc6 {[%emt 0:00:42]} 12. Nxd4 {[%emt 0:03:35]} cxd4 {[%emt 0:01:30] [#]} 13. Nd5 {[%emt 0:00:33]} Nxd5 {[%emt 0:02:21]} (13... Bxd5 14. exd5) 14. exd5 {[%emt 0:00:23]} Bd7 {[%emt 0:00:01]} 15. dxe6 {[%emt 0:01:16]} fxe6 {[%emt 0:00:11]} 16. g3 {[%emt 0:00:02]} Qc5 {[%emt 0:05:59]} 17. Qg4 {[%emt 0:02:30]} Rad8 {[%emt 0:01:23]} 18. Bg2 {[%emt 0:01:30]} (18. Rxe6 $2 Rf6 19. Rxe7 (19. Bh6 $2 Rxh6 20. Rxe7 Bxg4 $19) 19... Bxg4 20. hxg4 d5 $19) 18... e5 {[%emt 0:00:53]} 19. Qe2 {[%emt 0:00:30]} b5 {[%emt 0:00:43]} (19... Qc8 $5 {[%cal Rd7h3]}) 20. Be4 {[%emt 0:02:26]} Bf5 {[%emt 0:01:09] An even fight not without its subleties.  Weighted Error Value: White=0.09 (flawless) /Black=0.09 (flawless)} 1/2-1/2

[Event "Chinese League Div-A Rapid 2022"]
[Site "Fuling,Chongqing"]
[Date "2022.09.06"]
[Round "1.2"]
[White "Xu, Yi"]
[Black "Ding, Liren"]
[Result "0-1"]
[ECO "C47"]
[WhiteElo "2507"]
[BlackElo "2808"]
[Annotator "TA"]
[PlyCount "136"]
[EventDate "2022.09.07"]
[EventType "team-tourn"]
[EventCountry "CHN"]
[SourceTitle "playchess.com"]
[Source "ChessBase"]
[SourceQuality "1"]
[TimeControl "1500+10"]

{[%evp 22,136,1,0,18,0,0,0,0,0,0,0,0,-8,-4,0,0,0,0,0,0,-4,0,-15,0,0,0,-15,0,0,0,0,0,-15,-15,-15,-15,-15,-15,-15,0,-15,-8,-31,-8,-11,-5,-5,0,-13,-13,-33,-17,-17,-5,-5,30,-6,-6,-7,0,0,0,0,0,0,0,0,0,0,0,0,0,-89,-75,-85,-86,-85,-77,-66,-18,-18,0,0,0,0,0,0,0,0,0,0,0,0,0,0,0,-140,-39,-110,-110,-12833,-12834,-12832,-12832,-6029,-618,-12834,-12835,-12833,-12834,-12830,-2588,-12840,-12840,-12845,-12845]} 1. e4 {[%emt 0:00:02]} e5 {[%emt 0:00:01]} 2. Nf3 {[%emt 0:00:02]} Nc6 {[%emt 0:00:01]} 3. Nc3 {[%emt 0:00:06]} Nf6 {[%emt 0:00:28]} 4. d4 {[%emt 0:00:02]} exd4 {[%emt 0:00:31]} 5. Nxd4 {[%emt 0:00:02]} Bb4 {[%emt 0:00:03]} 6. Nxc6 {[%emt 0:00:03]} bxc6 {[%emt 0:00:02]} 7. Bd3 {[%emt 0:00:02]} d5 {[%emt 0:00:09]} 8. exd5 {[%emt 0:00:11]} O-O {[%emt 0:00:03]} 9. O-O {[%emt 0:00:06]} cxd5 {[%emt 0:00:02]} 10. Bg5 {[%emt 0:00:12]} c6 {[%emt 0:00:05]} 11. Qf3 {[%emt 0:00:06]} Bd6 {[%emt 0:00:15] 11...h6 is the modern continuation.} 12. Rae1 {[%emt 0:01:35]} a5 $5 {[%emt 0:02:23][%mdl 4] [#] Leaves trodden paths. C47: Scotch Four Knights and Four Knights with 4 g3.} 13. Ne2 $146 {[%emt 0:02:37]} ({Predecessor:} 13. h3 h6 14. Bxf6 Qxf6 15. Qxf6 gxf6 16. Ne2 a4 17. Ng3 Be5 18. c3 Ba6 19. Bxa6 Rxa6 20. f4 {½-½ (58) Petrov,V (2353)-Aleksandrov,A (2568) Skopje 2017}) 13... Bg4 {[%emt 0:02:22]} 14. Bxf6 {[%emt 0:00:33] Bxh7+ is the strong threat.} (14. Qe3 {with more complications.} Re8 15. Qd4 Be5 16. Bxf6 Bxd4 17. Bxd8 Bxe2 18. Rxe2 Raxd8 19. Rxe8+ Rxe8 20. b3) 14... Bxf3 {[%emt 0:00:01] The position is equal.} 15. Bxd8 {[%emt 0:00:02] Strongly threatening Bg5.} Bxe2 {[%emt 0:00:02]} 16. Rxe2 {[%emt 0:00:03] Black must now prevent Bg5.} Rfxd8 {[%emt 0:00:01]} 17. a4 {[%emt 0:00:38]} g6 {[%emt 0:00:16]} 18. g3 {[%emt 0:00:41]} Rab8 {[%emt 0:00:08]} 19. b3 $1 {[%emt 0:00:02]} Kg7 {[%emt 0:00:31]} 20. Kg2 {[%emt 0:00:03]} h5 {[%emt 0:00:05]} 21. h4 {[%emt 0:00:19]} Bb4 {[%emt 0:00:25]} 22. Rd1 {[%emt 0:00:59]} Re8 {[%emt 0:00:54]} 23. Rxe8 {[%emt 0:00:07]} Rxe8 $11 {[%emt 0:00:00][%mdl 4096] Endgame KRB-KRB} 24. Rf1 {[%emt 0:01:36]} Kf6 {[%emt 0:02:32]} 25. f4 {[%emt 0:03:17]} Bc5 {[%emt 0:00:34]} 26. Rf3 {[%emt 0:01:02]} Rg8 {[%emt 0:00:47]} 27. Rf1 {[%emt 0:00:11]} Ke7 {[%emt 0:00:08]} 28. Re1+ {[%emt 0:02:58]} Kd6 {[%emt 0:00:02]} 29. Kf3 {[%emt 0:00:22]} Bb4 {[%emt 0:00:40]} 30. Re2 {[%emt 0:00:01]} Bc3 {[%emt 0:00:01]} 31. Re3 {[%emt 0:04:56]} Bf6 {[%emt 0:00:19]} 32. Ke2 {[%emt 0:01:53]} Kc5 {[%emt 0:02:31]} (32... Bd4 $5 {[%cal Rd4e3]} 33. Rf3 f5 $15) 33. Kd2 {[%emt 0:00:52]} Kb4 {[%emt 0:00:02]} 34. Bf1 {[%emt 0:00:20]} Ka3 {[%emt 0:01:32]} 35. Kc1 {[%emt 0:01:19]} Bd4 {[%emt 0:04:03]} 36. Rd3 {[%emt 0:00:29]} Bb2+ {[%emt 0:00:12]} 37. Kd2 {[%emt 0:00:15]} Bf6 {[%emt 0:01:00]} 38. Re3 {[%emt 0:01:21]} Kb2 {[%emt 0:00:12]} 39. Bd3 {[%emt 0:00:22]} (39. b4 $5) 39... Rd8 {[%emt 0:00:31]} 40. Kd1 {[%emt 0:00:31]} Rb8 {[%emt 0:01:37]} 41. Re2 $1 {[%emt 0:01:01]} Rb4 {[%emt 0:03:12]} 42. Re8 {[%emt 0:00:29]} c5 {[%emt 0:00:03]} 43. Rc8 {[%emt 0:00:18]} Bd4 {[%emt 0:00:02]} 44. Ke2 {[%emt 0:00:12]} Rb6 {[%emt 0:02:11]} 45. Rd8 {[%emt 0:00:09]} Re6+ {[%emt 0:00:01]} 46. Kf1 {[%emt 0:00:11]} Re3 {[%emt 0:00:13]} 47. Rxd5 {[%emt 0:00:09]} (47. f5 $11) 47... Rxg3 $17 {[%emt 0:00:04]} 48. f5 {[%emt 0:00:07] [#]} g5 $1 {[%emt 0:00:46]} 49. hxg5 {[%emt 0:00:12]} Rxg5 {[%emt 0:00:02] And now ...h4 would win.} 50. Rd7 {[%emt 0:00:05]} Kc3 {[%emt 0:00:27]} (50... Kc1 $1 $15 {is superior.} 51. Ke2 (51. Rxf7 $2 {gets mated.} Kd2) 51... Rg3) 51. Ke2 $11 {[%emt 0:00:12]} f6 {[%emt 0:00:24]} 52. Rh7 $1 {[%emt 0:00:10]} Rg2+ {[%emt 0:00:00]} 53. Kf3 {[%emt 0:00:02]} Rh2 {[%emt 0:00:01]} 54. Rh6 {[%emt 0:00:22]} Kd2 {[%emt 0:00:03]} 55. Rh8 {[%emt 0:00:09]} Ke1 {[%emt 0:00:31]} 56. Re8+ {[%emt 0:00:11]} Be5 {[%emt 0:00:01]} 57. Ke4 {[%emt 0:00:10]} h4 {[%emt 0:00:02][%cal Bh5h4,Bh4h3,Bh3h2][%mdl 32]} 58. Rh8 {[%emt 0:00:12]} h3 {[%emt 0:00:10]} 59. Ke3 {[%emt 0:00:09]} (59. Kd5 $11) 59... Bd4+ {[%emt 0:00:17]} (59... Kd1 $17 60. Rh4 Rh1) 60. Kf3 {[%emt 0:00:03]} (60. Ke4 $15) 60... Rf2+ $17 {[%emt 0:00:03]} 61. Kg3 $2 {[%emt 0:00:16][%mdl 8192] Now White is beyond hope.} (61. Ke4 $17 h2 62. Kd5) 61... Be5+ $19 {[%emt 0:00:03] Black is clearly winning.} 62. Kg4 {[%emt 0:00:04]} h2 {[%emt 0:00:16]} 63. Rh3 {[%emt 0:00:11]} Rg2+ {[%emt 0:00:21]} (63... Rf4+ $142 64. Kh5 {[#]} Rf3 $3 {[%mdl 512]}) 64. Kh5 {[%emt 0:00:14]} Rg3 {[%emt 0:00:03]} 65. Rh4 {[%emt 0:00:13] [#]} Rxd3 $1 {[%emt 0:00:42][%mdl 512]} 66. cxd3 {[%emt 0:00:02]} Kf2 {[%emt 0:00:01]} (66... Kf1 $142 67. Kg6 Kg2) 67. d4 {[%emt 0:00:18]} cxd4 {[%emt 0:00:04][%cal Bc5d4,Bd4d3][%mdl 32] ( -> ...d3)} 68. b4 {[%emt 0:00:01]} d3 {[%emt 0:00:03] Weighted Error Value: White=0.14 (very precise) /Black=0.10 (very precise)} 0-1

[Event "Chinese League Div-A Rapid 2022"]
[Site "Fuling,Chongqing"]
[Date "2022.09.06"]
[Round "1.3"]
[White "Ni, Hua"]
[Black "Chen, Yuan"]
[Result "0-1"]
[ECO "E18"]
[WhiteElo "2668"]
[BlackElo "2138"]
[Annotator "TA"]
[PlyCount "114"]
[EventDate "2022.09.07"]
[EventType "team-tourn"]
[EventCountry "CHN"]
[SourceTitle "playchess.com"]
[Source "ChessBase"]
[SourceQuality "1"]
[TimeControl "1500+10"]

{[%evp 19,114,21,24,0,43,31,36,31,45,33,31,27,29,22,19,-65,-66,-60,-53,-61,-16,-14,-6,-50,-52,-35,-35,-77,-72,-104,-82,-138,-126,-149,-150,-158,-166,-183,-188,-190,-177,-190,-190,-190,-190,-194,-192,-186,-186,-182,-185,-250,-179,-175,-176,-176,-164,-160,-162,-161,-140,-159,-159,-159,-132,-159,-159,-159,-159,-159,-159,-159,-159,-159,-159,-159,-166,-166,-73,-108,0,-6079,-4906,-1927,-1759,-29943,-12843,-12663,-12663,-5326,-4154,-29983,-29959,-12663,-12663,-4930,-1576]} 1. d4 {[%emt 0:00:02]} Nf6 {[%emt 0:00:02]} 2. c4 {[%emt 0:00:02]} e6 {[%emt 0:00:03]} 3. g3 {[%emt 0:00:01]} d5 {[%emt 0:00:13]} 4. Bg2 {[%emt 0:00:01]} Be7 {[%emt 0:00:01]} 5. Nf3 {[%emt 0:00:01]} O-O {[%emt 0:00:02]} 6. O-O {[%emt 0:00:02]} b6 {[%emt 0:00:28]} 7. cxd5 {[%emt 0:00:39]} exd5 {[%emt 0:00:02]} 8. Nc3 {[%emt 0:00:02]} Bb7 {[%emt 0:00:02]} 9. Bf4 {[%emt 0:01:17]} Na6 {[%emt 0:00:34]} 10. Ne5 {[%emt 0:00:12]} c5 {[%emt 0:00:17]} 11. e3 {[%emt 0:04:59] [#] E18: Queen's Indian: Old Main Line (4 g3 Bb7 5 Bg2 Be7 6 0-0 0-0 7 Nc3).} Qe8 $146 {[%emt 0:04:58]} (11... Ne4 $5 {[%cal Re4c3]}) ({Predecessor:} 11... Ne4 12. h4 cxd4 13. exd4 Nc7 14. Qb3 Ne6 15. Be3 Nxc3 16. bxc3 Nc7 17. a4 f6 18. Nd3 Ba6 {1-0 (64) Eljanov,P (2671)-Korpa,B (2536) Biel 2021}) 12. Qc2 {[%emt 0:04:26]} Rd8 {[%emt 0:05:41]} 13. Rad1 {[%emt 0:00:02] White is slightly better.} Bd6 {[%emt 0:00:21]} 14. a3 {[%emt 0:01:01]} Nc7 {[%emt 0:00:52][%cal Ba6c7,Bc7e6,Be6g5][%mdl 32]} 15. Rfe1 {[%emt 0:01:39]} Qe7 {[%emt 0:01:55]} 16. Qa4 {[%emt 0:02:15]} Ne6 {[%emt 0:04:28] Against Bg5} 17. Qxa7 {[%emt 0:02:52]} (17. Nf3 $11) 17... g5 $1 $15 {[%emt 0:00:58]} 18. Bxg5 {[%emt 0:05:54]} Nxg5 {[%emt 0:00:02]} 19. Qxb6 {[%emt 0:00:01]} Qc7 {[%emt 0:02:20] Prevents Nc6.} 20. Qxc7 {[%emt 0:01:14]} Bxc7 {[%emt 0:00:02]} 21. Rc1 {[%emt 0:00:29]} (21. Nb5 $5 {[%cal Rb5c7]} Bb8 22. f4 $11) 21... cxd4 {[%emt 0:00:16]} 22. exd4 {[%emt 0:00:04]} Bb6 {[%emt 0:00:18]} 23. Red1 {[%emt 0:00:30]} Ne6 $36 {[%emt 0:00:07][%mdl 2048] Black is in control.} 24. Ne2 {[%emt 0:00:25]} Rc8 {[%emt 0:00:14]} 25. Nf3 {[%emt 0:00:30]} (25. Nc4 $142 Nxd4 26. Nxd4 Rxc4 27. Rxc4 dxc4 28. Bxb7) 25... Ne4 $17 {[%emt 0:00:18]} 26. Nc3 {[%emt 0:00:10]} Nxc3 {[%emt 0:01:16] Black is more active.} 27. bxc3 {[%emt 0:00:05] [#]} Ba5 $1 {[%emt 0:00:06]} 28. Nh4 {[%emt 0:00:35][%cal Oc3c4]} Rxc3 {[%emt 0:01:05]} 29. Nf5 {[%emt 0:00:01]} Rd8 {[%emt 0:00:44]} 30. Rb1 {[%emt 0:00:24]} Ba8 {[%emt 0:00:30]} 31. Rb5 {[%emt 0:00:03]} Rxa3 {[%emt 0:00:06]} 32. Bxd5 {[%emt 0:00:03]} Nc7 {[%emt 0:00:19]} 33. Rb3 {[%emt 0:00:16]} Rxb3 {[%emt 0:01:01]} ({Worse is} 33... Bxd5 34. Ne7+ Kf8 35. Rxa3 $11) 34. Bxb3 {[%emt 0:00:01]} Kf8 {[%emt 0:00:21]} 35. Nh6 {[%emt 0:00:21]} (35. d5 $142) 35... Bd5 {[%emt 0:00:26]} 36. Bxd5 {[%emt 0:00:02]} Rxd5 {[%emt 0:00:03]} 37. Ng4 {[%emt 0:00:02]} Kg7 {[%emt 0:00:25]} 38. Ne3 {[%emt 0:00:01]} Rd7 {[%emt 0:00:08]} 39. Rc1 {[%emt 0:00:27]} Bd2 {[%emt 0:00:16]} 40. Rc2 {[%emt 0:00:09]} Bxe3 {[%emt 0:00:07]} 41. fxe3 {[%emt 0:00:01][%mdl 4096] Endgame KRN-KR} Re7 {[%emt 0:00:08] And now ...Nd5 would win.} 42. Kf2 {[%emt 0:00:12]} Nd5 {[%emt 0:00:01]} 43. Re2 {[%emt 0:00:00]} f5 {[%emt 0:00:05]} 44. Kf3 {[%emt 0:00:01]} Re4 {[%emt 0:00:11]} 45. h3 {[%emt 0:00:06]} h5 {[%emt 0:00:14] Against g4} 46. Re1 {[%emt 0:00:19]} Kf6 {[%emt 0:00:03]} 47. Re2 {[%emt 0:00:03]} Kg5 {[%emt 0:00:08]} 48. Re1 {[%emt 0:00:53]} Nf6 {[%emt 0:00:13]} (48... Kh6 $19 {and Black stays clearly on top.} 49. Re2 Kg5) 49. Ra1 {[%emt 0:00:11]} Nd5 {[%emt 0:00:11]} (49... h4 $17 {White must now prevent ...hxg3.} 50. gxh4+ Rxh4 51. Rg1+ Kh6) 50. Ra6 $2 {[%emt 0:00:07][%mdl 8192]} (50. Re1 $11) 50... Rxe3+ $19 {[%emt 0:00:11]} 51. Kf2 {[%emt 0:00:00]} h4 {[%emt 0:00:28]} 52. gxh4+ {[%emt 0:00:12]} Kf4 {[%emt 0:00:01]} 53. h5 {[%emt 0:00:22]} Rxh3 {[%emt 0:00:16]} 54. h6 {[%emt 0:00:03]} Ne3 {[%emt 0:00:15][%cal Oh3h6] [#] ( -> ...Rxh6!)} 55. d5 {[%emt 0:00:19]} Nxd5 {[%emt 0:00:12]} 56. Rg6 {[%emt 0:00:10]} Ne3 {[%emt 0:00:09]} 57. Ke2 {[%emt 0:00:10]} Ng4 {[%emt 0:00:04] Weighted Error Value: White=0.49/Black=0.10 (very precise)} 0-1

[Event "Chinese League Div-A Rapid 2022"]
[Site "Fuling,Chongqing"]
[Date "2022.09.06"]
[Round "1.4"]
[White "Bai, Xue"]
[Black "Ju, Wenjun"]
[Result "0-1"]
[ECO "B33"]
[WhiteElo "2123"]
[BlackElo "2560"]
[Annotator "TA"]
[PlyCount "88"]
[EventDate "2022.09.07"]
[EventType "team-tourn"]
[EventCountry "CHN"]
[SourceTitle "playchess.com"]
[Source "ChessBase"]
[SourceQuality "1"]
[TimeControl "1500+10"]

{[%evp 28,88,0,14,7,-84,-82,-66,-44,-104,-79,-72,-80,-74,-60,-60,-56,-59,-45,-51,-42,-60,-50,-87,-79,-226,-194,-277,-245,-225,-270,-250,-266,-241,-241,-237,-231,-225,-213,-902,-842,-29974,-29976,-29976,-29975,-29976,-29977,-29979,-29980,-29981,-29982,-29982,-29983,-29983,-29984,-29984,-29985,-29985,-29986,-29986,-29987,-29987,-29986]} 1. e4 {[%emt 0:00:03]} c5 {[%emt 0:00:04]} 2. Nf3 {[%emt 0:00:02]} Nc6 {[%emt 0:00:01]} 3. d4 {[%emt 0:00:02]} cxd4 {[%emt 0:00:02]} 4. Nxd4 {[%emt 0:00:01]} Nf6 {[%emt 0:00:02]} 5. Nc3 {[%emt 0:00:02]} e5 {[%emt 0:00:01]} 6. Ndb5 {[%emt 0:00:02]} d6 {[%emt 0:00:02]} 7. Bg5 {[%emt 0:00:03]} a6 {[%emt 0:00:01]} 8. Na3 {[%emt 0:00:02]} b5 {[%emt 0:00:02]} 9. Nd5 {[%emt 0:00:03]} Be7 {[%emt 0:00:03]} 10. Bxf6 {[%emt 0:00:04]} Bxf6 {[%emt 0:00:03]} 11. c3 {[%emt 0:01:03]} Bg5 {[%emt 0:00:03]} 12. Nc2 {[%emt 0:00:24]} Rb8 {[%emt 0:00:02]} 13. a4 {[%emt 0:01:24]} bxa4 {[%emt 0:00:05]} 14. Ncb4 {[%emt 0:00:06]} Nxb4 {[%emt 0:00:06]} 15. Nxb4 {[%emt 0:00:06]} Bd7 {[%emt 0:00:36] Prevents Nc6. Hoping for ...a5. B33: Sicilian: Pelikan and Sveshnikov Variations.} 16. Qxd6 {[%emt 0:04:18]} (16. Bxa6 $11 {keeps the balance.} O-O 17. O-O) 16... Be7 $1 $17 {[%emt 0:02:42] This bishop pair is nice.} 17. Qxe5 {[%emt 0:00:00]} O-O {[%emt 0:00:07] [#] Threatens to win with ...Rxb4. Black is slightly better.} 18. Be2 $146 {[%emt 0:05:27]} (18. Nd5 $15 Re8 19. Bd3 (19. Bxa6 Bc5 $17) (19. Nxe7+ Rxe7 20. Qd4 Rxb2 $15)) ({Predecessor:} 18. Bxa6 Re8 19. Qd5 Bxb4 20. cxb4 Qb6 21. O-O Bc6 22. Qa5 Qxb4 23. Qxb4 Rxb4 24. Rfc1 Bxe4 25. Rc4 Rxc4 26. Bxc4 Bc6 27. b3 axb3 {½-½ (27) Shirov,A (2726)-Kramnik,V (2751) ICC INT 1999}) 18... Re8 {[%emt 0:01:33]} 19. Qd4 {[%emt 0:00:25]} Bxb4 {[%emt 0:02:37]} 20. cxb4 {[%emt 0:00:03]} Bb5 $36 {[%emt 0:00:01][%mdl 2048] Black has the initiative.} 21. Qxd8 {[%emt 0:00:37]} Rbxd8 {[%emt 0:00:04]} 22. f3 {[%emt 0:03:36]} Rd4 {[%emt 0:07:07]} 23. Bxb5 {[%emt 0:03:06]} axb5 $15 {[%emt 0:00:01][%mdl 4096] Endgame KRR-KRR} 24. b3 {[%emt 0:03:29]} axb3 {[%emt 0:00:34]} 25. Rb1 {[%emt 0:00:49]} Rxb4 {[%emt 0:01:24] Black is more active.} 26. O-O {[%emt 0:01:53] [#] This costs White the game.} (26. Kd2 $17) 26... Rc8 $1 $19 {[%emt 0:01:23]} ({Inferior is} 26... b2 27. Rf2 $11) 27. Rb2 {[%emt 0:01:02]} (27. Rfe1 $142) 27... Rc2 {[%emt 0:04:12]} 28. Rfb1 {[%emt 0:00:10]} Rxb2 {[%emt 0:00:01]} 29. Rxb2 {[%emt 0:00:00] KR-KR} Kf8 {[%emt 0:00:01]} 30. Kf2 {[%emt 0:00:02]} Ke7 {[%emt 0:00:00] ...Kd6 is the strong threat.} 31. Ke3 {[%emt 0:01:04]} Kd6 {[%emt 0:00:02] Strongly threatening ...Kc5.} 32. Kd3 {[%emt 0:00:32]} Kc5 {[%emt 0:00:33] White must now prevent ...Rd4+.} 33. Kc3 {[%emt 0:00:21]} (33. Rb1) 33... g5 {[%emt 0:03:15]} 34. Rxb3 {[%emt 0:00:09]} Rxb3+ {[%emt 0:00:01] Black mates.} 35. Kxb3 {[%emt 0:00:01] KP-KP} Kd4 {[%emt 0:00:01]} 36. Kb4 {[%emt 0:00:15] [#]} Ke3 $1 {[%emt 0:00:02]} 37. Kxb5 {[%emt 0:00:01]} Kf2 {[%emt 0:00:01]} 38. Kc4 {[%emt 0:00:03]} Kxg2 {[%emt 0:00:12]} 39. Kd5 {[%emt 0:00:01]} Kxf3 {[%emt 0:00:15]} 40. Ke5 {[%emt 0:00:01]} g4 {[%emt 0:01:04]} 41. Kf5 {[%emt 0:00:03]} h5 {[%emt 0:00:09]} 42. Kg5 {[%emt 0:00:35]} Kxe4 {[%emt 0:00:13]} 43. Kxh5 {[%emt 0:00:03]} f5 {[%emt 0:00:04]} 44. Kh4 {[%emt 0:00:11]} Kf4 {[%emt 0:00:14] Weighted Error Value: White=0.57/Black=0.03 (flawless)} 0-1

[Event "Chinese League Div-A Rapid 2022"]
[Site "Fuling,Chongqing"]
[Date "2022.09.06"]
[Round "1.5"]
[White "Zhu, Jiner"]
[Black "Ning, Kaiyu"]
[Result "0-1"]
[ECO "D11"]
[WhiteElo "2464"]
[BlackElo "2374"]
[Annotator "TA"]
[PlyCount "82"]
[EventDate "2022.09.07"]
[EventType "team-tourn"]
[EventCountry "CHN"]
[SourceTitle "playchess.com"]
[Source "ChessBase"]
[SourceQuality "1"]
[TimeControl "1500+10"]

{[%evp 12,82,6,6,9,0,0,-2,0,0,0,-16,0,0,0,0,7,3,18,0,0,0,0,-91,0,0,34,44,44,40,42,9,4,17,53,41,71,64,63,68,61,20,9,0,54,0,0,-81,-22,-422,-143,-141,-133,-116,-120,-158,-133,-465,-385,-429,-446,-433,-407,-469,-476,-2029,-1995,-5563,-5305,-12839,-6270,-5397,-2028]} 1. Nf3 {[%emt 0:00:04]} d5 {[%emt 0:00:06]} 2. g3 {[%emt 0:00:02]} Bg4 {[%emt 0:01:27]} 3. Bg2 {[%emt 0:00:03]} Nd7 {[%emt 0:00:02]} 4. d4 {[%emt 0:00:11]} c6 {[%emt 0:00:13]} 5. O-O {[%emt 0:00:06]} Ngf6 {[%emt 0:00:13]} 6. c4 {[%emt 0:00:14]} e6 {[%emt 0:00:41]} 7. b3 {[%emt 0:00:28]} Be7 {[%emt 0:00:12] D11: Slav Defence: 3 Nf3 sidelines and 3...Nf6 4 e3 Bg4.} 8. Nc3 {[%emt 0:00:05]} O-O {[%emt 0:00:32]} 9. h3 {[%emt 0:00:11]} Bh5 {[%emt 0:01:25] The position is equal.} 10. Bb2 {[%emt 0:00:29]} h6 {[%emt 0:00:05]} 11. Rc1 {[%emt 0:02:17]} a5 {[%emt 0:00:03] [#]} 12. Ne5 $146 {[%emt 0:01:19]} ({Predecessor:} 12. Re1 Bg6 13. e3 Ne4 14. Nxe4 Bxe4 15. cxd5 cxd5 16. Ne5 Bh7 17. Qe2 Nxe5 18. dxe5 Qb6 19. Bd4 Qb4 20. Bc3 Qb6 21. Bd4 Qb4 22. Bc3 Qb6 {½-½ (22) Tomic,G (2232)-Stamenkovic,A (2172) Niksic 2018}) 12... Nxe5 {[%emt 0:04:51]} 13. dxe5 {[%emt 0:00:03]} Nd7 {[%emt 0:00:02]} 14. cxd5 {[%emt 0:00:45]} cxd5 {[%emt 0:00:23]} 15. Nb5 {[%emt 0:01:53]} a4 {[%emt 0:03:54]} 16. g4 {[%emt 0:07:45]} Bg6 {[%emt 0:00:19]} 17. Nd6 {[%emt 0:00:24]} (17. bxa4 $11 {keeps the balance.} Nc5 18. f4) 17... Qb8 {[%emt 0:06:24]} (17... axb3 $17 18. Qxb3 {[#]} Nxe5 $1 19. Nxb7 Qb8) 18. f4 $1 $11 {[%emt 0:07:26][%cal Bf2f4,Bf4f5][%mdl 32]} Bxd6 {[%emt 0:01:45]} 19. exd6 {[%emt 0:00:02]} Qxd6 {[%emt 0:01:22]} 20. f5 {[%emt 0:00:06]} Bh7 {[%emt 0:00:31]} 21. e4 {[%emt 0:00:49]} (21. Qd4 $5 {[%cal Rd4g7]} Nf6 22. e4 $14) 21... axb3 {[%emt 0:00:22]} 22. axb3 {[%emt 0:00:04]} Ra2 {[%emt 0:00:27]} 23. Rf2 {[%emt 0:00:42]} Re8 {[%emt 0:01:18]} 24. Qd4 {[%emt 0:01:22][%csl Gb2][%cal Rd4g7]} f6 {[%emt 0:00:37]} 25. fxe6 {[%emt 0:00:24]} Qxe6 {[%emt 0:00:25][%cal Rh7e4]} 26. exd5 {[%emt 0:00:30]} Qd6 {[%emt 0:00:10]} 27. Qc4 {[%emt 0:00:38]} Nb6 {[%emt 0:01:22]} (27... Kh8 $11) 28. Qd4 {[%emt 0:01:10]} (28. Qb5 $1 $14 Bg6 29. Bd4) 28... Bg6 {[%emt 0:00:04]} 29. Bf3 {[%emt 0:00:04]} (29. h4 $11) 29... Nd7 {[%emt 0:00:16] Black is more active.} (29... Bf7 $17 {Black wants to play ...Qg3+.} 30. Rg2 Bxd5) 30. Qc4 $2 {[%emt 0:00:12][%mdl 8192] [#]} (30. Bg2 $1 $11 {and White has nothing to worry.}) 30... Rxb2 $1 {[%emt 0:00:16][%mdl 512]} 31. Rxb2 $17 {[%emt 0:00:03]} Ne5 {[%emt 0:00:10][%cal Bd7e5,Be5d3,Bd3f4][%mdl 32]} 32. Qc3 {[%emt 0:00:19]} Qb6+ {[%emt 0:00:17][%mdl 1024] Black has strong compensation.} 33. Rf2 {[%emt 0:00:02]} Nd3 $36 {[%emt 0:00:03][%mdl 2112] Pin, Double Attack. Black has strong initiative.} 34. Rcf1 {[%emt 0:00:08][%mdl 8192]} (34. Qd2 $17) 34... Re3 $19 {[%emt 0:00:17]} 35. Qc8+ {[%emt 0:00:04]} Kh7 {[%emt 0:00:01] aiming for ...Rxf3.} 36. Kg2 {[%emt 0:00:11]} Nf4+ {[%emt 0:00:15]} ({Not} 36... Nxf2 $2 37. Rxf2 Qxb3 38. d6 $19) 37. Kh1 {[%emt 0:00:12]} Nxh3 {[%emt 0:00:06] Black is clearly winning.} 38. Rg2 {[%emt 0:00:08]} (38. Qc4 $142 Nxf2+ 39. Rxf2) 38... Qxb3 {[%emt 0:00:10] ( -> ...Ng5)} 39. Rg3 {[%emt 0:00:02]} Ng5 {[%emt 0:00:04][%cal Rg5f3]} 40. Kg2 {[%emt 0:00:20]} Nxf3 {[%emt 0:00:11]} 41. Rfxf3 {[%emt 0:00:12]} Be4 {[%emt 0:00:07] Weighted Error Value: White=0.83/Black=0.23 (precise)} (41... Qb2+ $142 42. Kh3 Re2) 0-1